Cogmind - Beta 14 @@@ ROGUE MODE // 2024.09.11 @ 05:22:55 Player: Null_error Result: Destroyed by Y-54 Guardian with Gatling Laser Performance ------------- Evolutions (4) 2000 Regions Visited (7) 1400 Robots Destroyed (112) 560 Value Destroyed (3909) 3909 Prototype IDs (6) 120 Alien Tech Used (0) 0 Bonus (331) 331 TOTAL SCORE: 8320 Bonus ------- High Alert Combat Kills 211 Follower Combat Kills 120 Cogmind --------- Core Integrity 0/850 Matter 5/300 Energy 125/125 System Corruption 7% Temperature Cool (6) Movement Rolling (80) Location -6/Extension Parts ------- > --- POWER (2) -------- Light Ion Engine > --- PROPULSION (4) --- Wheel > --- UTILITY (6) ------ Terrain Scanner Terrain Scan Processor > --- WEAPON (3) ------- Axe > --- INVENTORY (5) ---- Fusion Compressor Improved Heat Sink ECM Suite Improved Medium Armor Plating Phasing Sabre Peak State ------------ > --- POWER ------------ Fission Core Fusion Compressor > --- PROPULSION ------- Carbon-fiber Leg Improved Hover Unit Gravmag Array > --- UTILITY ---------- Medium Storage Unit Gravity Neutralizer Machine Analyzer Enhanced Optical Array Improved Sensor Array Transmission Jammer > --- WEAPON ----------- Improved Lightning Gun Improved Lightning Gun Proton Cannon > --- INVENTORY -------- Light Angular Momentum Engine Improved Heat Sink Advanced Targeting Computer ECM Suite Reaction Control System Improved Medium Armor Plating Improved Medium Armor Plating Improved Lightning Gun Coil Gun Axe [Rating: 67] Favorites ----------- Power Light Nuclear Core Engine Light Deuterium Engine Power Core Light Nuclear Core Propulsion Improved Titanium Leg Treads Light Treads Leg Improved Titanium Leg Wheel Wheel Hover Unit Gravmag Array Flight Unit Nuclear Pulse Thruster Utility Medium Storage Unit Device Improved Sensor Array Storage Medium Storage Unit Processor Improved Signal Interpreter Hackware Hacking Suite Protection Medium Reactive Plating Weapon Pulse Rifle Energy Gun Pulse Rifle Energy Cannon Heavy Particle Cannon Ballistic Gun Gauss Rifle Ballistic Cannon Assault Cannon Launcher Heavy Missile Launcher Impact Weapon Hammer Slashing Weapon Axe Build | -11 -10 -9 -8 -7 -7 -6 -6 ------- Run | Yrd Mat Mat Mat Fac Sto Fac Ext Slots Evolved 8 | . . 2 2 2 . 2 . Power 1 | . . . 1 . . . . Propulsion 2 | . . 1 . . . 1 . Utility 4 | . . 1 1 1 . 1 . Weapon 1 | . . . . 1 . . . Parts Attached 183 | 11 7 30 24 8 58 42 3 Power 28 | 1 1 2 3 2 12 6 1 Engine 13 | 1 1 2 2 2 2 2 1 Core 15 | . . . 1 . 10 4 . Reactor . | . . . . . . . . Propulsion 40 | 5 1 10 3 1 11 8 1 Treads 1 | . . 1 . . . . . Leg 25 | . . 6 3 1 11 4 . Wheel 10 | 5 1 3 . . . . 1 Hover 3 | . . . . . . 3 . Flight 1 | . . . . . . 1 . Utility 60 | 3 2 7 13 2 19 13 1 Device 39 | 2 1 6 6 1 11 11 1 Storage 7 | 1 1 . 3 . 2 . . Processor 6 | . . . 2 . 2 2 . Hackware 1 | . . . . . 1 . . Protection 7 | . . 1 2 1 3 . . Artifact . | . . . . . . . . Weapon 55 | 2 3 11 5 3 16 15 . Energy Gun 28 | 1 . 6 1 2 13 5 . Energy Cannon 4 | . . . 3 . . 1 . Ballistic Gun 9 | 1 . 3 1 1 1 2 . Ballistic Cannon 3 | . . . . . 1 2 . Launcher 5 | . 2 . . . 1 2 . Special Weapon . | . . . . . . . . Impact Weapon 3 | . 1 2 . . . . . Slashing Weapon 3 | . . . . . . 3 . Piercing Weapon . | . . . . . . . . Special Melee Weapon . | . . . . . . . . Unidentified Prototypes 6 | . . . 2 . 4 . . Corrupted Parts 1 | . . 1 . . . . . System Corruption 4 | . . 4 . . . . . Parts Lost 59 | . 3 15 2 . 11 25 3 Power 8 | . 1 1 . . 2 4 . Propulsion 20 | . 1 7 . . 2 8 2 Utility 14 | . 1 3 2 . 3 4 1 Weapon 17 | . . 4 . . 4 9 . Highest Loss Streak 10 | . 2 6 2 . 2 10 2 To Critical Strikes . | . . . . . . . . Average Slot Usage (%) 87 | . 96 83 97 99 99 76 28 Engine 5 | . 13 4 12 7 3 3 . Core 6 | . . . 4 7 11 5 . Leg 16 | . . 14 27 23 22 11 . Wheel 3 | . 27 11 . . . . . Hover 1 | . . . . . . 3 5 Device 14 | . 13 17 14 16 15 13 5 Storage 7 | . 14 11 9 7 8 5 . Processor 6 | . . . 6 7 5 13 6 Protection 2 | . . 2 4 5 4 . . Energy Gun 9 | . . 6 1 6 18 8 . Energy Cannon 2 | . . . 9 7 1 1 . Ballistic Gun 3 | . 12 4 6 7 2 . . Impact Weapon 1 | . 12 7 . . . . . Peak Build Rating 67 | 7 7 14 30 38 48 67 29 Average Rating 34 | 6 6 10 25 36 42 46 19 On Entrance 20 | . 6 7 14 30 37 41 29 Naked Turns 1 | . . . . . . 1 . Heaviest Build 60 | 13 14 21 35 60 59 46 7 Greatest Support 72 | 32 20 36 42 42 72 59 10 Greatest Overweight (x) 13 | . 1 2 . 1 1 13 1 Average Overweight (x) . | . . . . . . . . Largest Inventory Capacity 10 | 8 8 8 10 10 10 10 5 Average Capacity 9 | 7 8 8 8 10 10 9 5 Most Carried 10 | 7 8 8 10 10 10 10 5 Average Carried 8 | 2 7 7 7 9 9 8 5 Final Capacity 10 | 8 8 8 10 10 10 5 5 Final Carried 10 | 7 8 8 10 10 10 5 5 Class Distribution -------------------- 36% | Scavenger-Skirmisher 25% | Mutant 20% | Scavenger-Mutant 12% | Scavenger-Tank Dominant Class ---------------- Mutant | -10/Materials Mutant | -9/Materials Scavenger-Mutant | -8/Materials Scavenger-Tank | -7/Factory Scavenger-Skirmisher | -7/Storage Scavenger-Skirmisher | -6/Factory Mutant | -6/Extension Resources | -11 -10 -9 -8 -7 -7 -6 -6 ----------- Run | Yrd Mat Mat Mat Fac Sto Fac Ext Matter Collected 2881 | 348 146 566 325 120 894 457 25 Remotely 237 | 231 . . . . . 6 . Salvage Created 4446 | 222 155 778 614 139 1820 693 25 Parts 219 | 12 3 42 17 1 94 47 3 Haulers Intercepted 2 | . . 1 . . 1 . . Recyclers Shooed 5 | . . . 1 . 2 2 . Parts Field Recycled . | . . . . . . . . Retrieved Matter . | . . . . . . . . Parts Self-Destructed . | . . . . . . . . Prevented . | . . . . . . . . Kills | -11 -10 -9 -8 -7 -7 -6 -6 ------- Run | Yrd Mat Mat Mat Fac Sto Fac Ext Combat Hostiles Destroyed 79 | . 6 17 8 1 33 14 . Melee 6 | . 2 2 . . . 2 . Guns 39 | . . 6 4 1 22 6 . Cannons 11 | . . . 4 . 7 . . AOE 16 | . 3 5 . . 3 5 . Classes Destroyed 15 | 3 2 3 3 . 2 2 . Worker 8 | 2 1 2 . . 2 1 . Builder 5 | . . . . . 2 2 1 Tunneler 5 | 4 . . . . . 1 . Hauler 2 | . . 1 . . 1 . . Recycler 6 | 1 . 1 2 1 1 . . Operator 2 | . . 1 . . 1 . . Watcher 5 | . . . 1 . 2 2 . Swarmer 12 | . 3 4 . . 4 1 . Grunt 37 | . 3 7 6 . 15 6 . Brawler 2 | . . . 1 . 1 . . Duelist 1 | . . . . . . 1 . Sentry 14 | . . 6 . . 7 1 . Specialist 2 | . . . . . . 2 . Hunter 5 | . . . 1 1 2 1 . Programmer 6 | . . . . . 4 2 . Best Kill Streak 5 | 3 3 5 3 1 5 5 1 Combat Bots Only 5 | . 3 5 3 1 5 4 . Max Kills in Single Turn 3 | 1 2 2 1 1 2 3 1 Gunslinging . | . . . . . . . . Exploded 3 | . 2 2 . . 1 3 . Melee 1 | . 1 1 . . . 1 . Uniques/NPCs Destroyed . | . . . . . . . . Combat | -11 -10 -9 -8 -7 -7 -6 -6 -------- Run | Yrd Mat Mat Mat Fac Sto Fac Ext Hostile Shots Fired 1010 | . 69 140 52 22 444 224 59 Missed 317 | . 17 30 11 11 166 65 17 Damage Taken 8893 | . 517 1783 626 114 2828 2738 287 Core 1709 | . 145 351 61 . 301 744 107 Absorbed by Shields 172 | . . . . . 119 . 53 Ignored by Resistances 229 | . . . . 29 200 . . Regen/Repaired (Parts) 23 | . . . . . 23 . . Core Remaining (%) 59 | 100 42 12 88 . 57 . . Volleys Fired 263 | 17 15 46 31 10 98 46 . Largest 3 | 2 1 2 2 3 3 3 . Hottest 193 | 60 30 130 100 163 193 180 . Shots Fired 574 | 28 15 61 62 30 282 96 . Gun 451 | 28 12 56 31 20 237 67 . Cannon 98 | . . . 31 10 42 15 . Launcher 25 | . 3 5 . . 3 14 . Special . | . . . . . . . . Kinetic 170 | 17 12 29 31 10 56 15 . Thermal 248 | . . 18 31 20 148 31 . Explosive 25 | . 3 5 . . 3 14 . Electromagnetic 131 | 11 . 9 . . 75 36 . Robot Hit Streak 15 | 5 2 12 11 12 15 8 . Robot Miss Streak 7 | 3 3 4 4 5 5 7 . Penetration Max 1 | . . . . . 1 . . Secondary Targets 2 | . . . . . 1 1 . Max Gunslinging Chain 1 | . . . . . 1 1 . Shots Hit Robots 421 | 15 23 64 38 17 205 59 . Core Hits 205 | 8 6 25 18 4 102 41 1 Critical Kills 2 | . 1 . . . . 1 . Critical Parts Destroyed 3 | . 2 1 . . . . . Critical Strikes 14 | . 3 3 . . 6 2 . Burn 6 | . . 1 . . 4 1 . Destroy 1 | . . . . . . 1 . Corrupt 2 | . . . . . 2 . . Smash 5 | . 3 2 . . . . . Melee Attacks 64 | . 23 27 . . . 14 . Impact 50 | . 23 27 . . . . . Slashing 14 | . . . . . . 14 . Piercing . | . . . . . . . . Sneak Attacks 4 | . 1 3 . . . . . Combat Hostiles . | . . . . . . . . Follow-up Attacks . | . . . . . . . . Damage Inflicted 10782 | 199 734 1853 816 316 4218 2628 18 Guns 5186 | 199 72 620 339 166 2927 863 . Cannons 1424 | . . . 466 150 687 121 . Explosions 2598 | . 151 367 . . 576 1504 . Melee 1508 | . 511 866 . . . 131 . Ramming 66 | . . . 11 . 28 9 18 Kinetic 1818 | 84 72 336 339 65 779 143 . Thermal 3902 | . . 191 466 251 2348 646 . Explosive 2000 | . 151 367 . . 290 1192 . Electromagnetic 1488 | 115 . 93 . . 773 507 . Impact 1377 | . 511 866 . . . . . Slashing 131 | . . . . . . 131 . Piercing . | . . . . . . . . Highest Corruption 7 | . . 5 . . 6 4 7 Average Corruption 3 | . . 2 . . 3 3 4 Corruption Purged . | . . . . . . . . Corruption Blocked . | . . . . . . . . Effects 66 | . . 8 . . 39 13 6 Message Errors 16 | . . 2 . . 8 5 1 Matter Fused 15 | . . 2 . . 6 5 2 Heat Flow Errors 14 | . . 2 . . 9 2 1 Energy Discharges 5 | . . 1 . . 3 1 . Parts Rejected 1 | . . . . . 1 . . Parts Fused 2 | . . . . . 2 . . Data Loss (minor) 5 | . . 1 . . 3 . 1 Data Loss (major) 1 | . . . . . 1 . . Misfires 5 | . . . . . 5 . . Alerts 1 | . . . . . . . 1 Weapon Failures 1 | . . . . . 1 . . Overload Shots . | . . . . . . . . Overflow Damage 460 | . 77 283 10 . 32 58 . Projectiles 11 | . . . 10 . . 1 . Explosions 164 | . 2 73 . . 32 57 . Melee 285 | . 75 210 . . . . . Knockbacks 8 | . 5 2 . . 1 . . Impact 6 | . 4 2 . . . . . Kinetic 1 | . . . . . 1 . . Secondary 1 | . 1 . . . . . . Self-Inflicted Damage 811 | . 39 307 . . 162 294 9 Shots 24 | . 1 6 . . 4 13 . Rammed 5 | . . . . . . 3 2 Targets Rammed 14 | . . . 1 . 6 5 2 Kicked 9 | . . . 1 . 6 2 . Crushed . | . . . . . . . . Highest Temperature 764 | . . 174 317 69 413 764 170 Average Temperature 114 | . . 31 117 35 108 146 96 Received Heat Transfer 2521 | . 132 711 252 . 828 514 84 Effects 28 | . . . 1 . 2 25 . Shutdowns 8 | . . . . . 1 7 . Energy Bleed 2 | . . . . . 1 1 . Interference 3 | . . . 1 . . 2 . Matter Decay 2 | . . . . . . 2 . Short Circuit 2 | . . . . . . 2 . Damage (minor) 3 | . . . . . . 3 . Damage (major) 6 | . . . . . . 6 . Damage (core) 2 | . . . . . . 2 . Siege Activations . | . . . . . . . . Robots Corrupted 8 | . 2 4 . . 1 1 . Combat Hostiles 6 | . 1 3 . . 1 1 . Parts Fried 15 | . 4 7 . . 1 3 . Impact Corruptions 12 | . 4 8 . . . . . Robots Melted 1 | . . 1 . . . . . Combat Hostiles 1 | . . 1 . . . . . Parts Melted 12 | . . . . . 9 3 . Heat Transferred 7292 | . . 462 703 444 4593 1090 . Parts Sabotaged . | . . . . . . . . Parts Stolen . | . . . . . . . . Parts Stripped . | . . . . . . . . Power Chain Reactions 7 | . . . . . 5 2 . Alert | -11 -10 -9 -8 -7 -7 -6 -6 ------- Run | Yrd Mat Mat Mat Fac Sto Fac Ext Peak Influence 652 | 35 198 470 452 186 652 368 244 Initial 296 | . 22 83 154 135 6 296 179 Average 261 | 16 88 341 248 129 324 250 201 Maximum Alert Level 2 | . . 2 2 . 2 1 1 Low Security (%) 34 | 100 100 6 42 100 22 21 45 Level 1 52 | . . 66 49 . 50 78 54 Level 2 13 | . . 27 7 . 27 . . Level 3 . | . . . . . . . . Level 4 . | . . . . . . . . Level 5 . | . . . . . . . . High Security . | . . . . . . . . Max Security . | . . . . . . . . Squads Dispatched 20 | . 1 1 2 1 9 6 . Investigation 5 | . . 1 1 . 3 . . Extermination 8 | . . . . 1 4 3 . Reinforcement 6 | . 1 . . . 2 3 . Assault . | . . . . . . . . Garrison 1 | . . . 1 . . . . Intercept . | . . . . . . . . Searches Triggered . | . . . . . . . . Construction Impeded . | . . . . . . . . Haulers Reinforced 1 | . . . . . . 1 . Active Scanning Responses . | . . . . . . . . Cargo Convoy Interrupts 1 | . . . . . . 1 . Stealth | -11 -10 -9 -8 -7 -7 -6 -6 --------- Run | Yrd Mat Mat Mat Fac Sto Fac Ext Distress Signals 6 | . . 1 . . 2 1 2 Communications Jammed 34 | . . . . . . 34 . Distress Signals 34 | . . . . . . 34 . Times Spotted 138 | . 8 21 14 2 49 36 8 Peak Tracking Total 7 | . 3 7 6 2 5 5 4 Tactical Retreats 16 | . . 1 2 . 5 5 3 Traps | -11 -10 -9 -8 -7 -7 -6 -6 ------- Run | Yrd Mat Mat Mat Fac Sto Fac Ext Traps Triggered 10 | . . . 1 . 4 3 2 Indirectly . | . . . . . . . . Trap Hack Attempts . | . . . . . . . . Triggered . | . . . . . . . . Disarmed . | . . . . . . . . Reprogrammed . | . . . . . . . . Reused . | . . . . . . . . Traps Extracted . | . . . . . . . . Installed . | . . . . . . . . Triggered 2 | . . . . . . 2 . Machines | -11 -10 -9 -8 -7 -7 -6 -6 ---------- Run | Yrd Mat Mat Mat Fac Sto Fac Ext Machines Disabled 16 | . . 7 2 . 3 4 . Max in Single Turn 4 | . . 4 1 . 2 2 . Machines Repaired . | . . . . . . . . Machines Dismantled . | . . . . . . . . Machines Sabotaged . | . . . . . . . . Overloaded Fab Kills . | . . . . . . . . Hacking | -11 -10 -9 -8 -7 -7 -6 -6 --------- Run | Yrd Mat Mat Mat Fac Sto Fac Ext Machines Accessed 16 | . 2 4 . . 6 4 . Terminals 15 | . 2 4 . . 5 4 . Fabricators . | . . . . . . . . Repair Stations 1 | . . . . . 1 . . Recycling Units . | . . . . . . . . Scanalyzers . | . . . . . . . . Garrison Access . | . . . . . . . . Total Hacks 40 | . 8 10 . . 11 11 . Successful 23 | . 6 5 . . 7 5 . Failed 17 | . 2 5 . . 4 6 . Catastrophic 4 | . . 1 . . 1 2 . Database Lockouts . | . . . . . . . . Manual 19 | . 8 9 . . 2 . . Terminals 37 | . 8 10 . . 8 11 . Fabricators . | . . . . . . . . Repair Stations 3 | . . . . . 3 . . Recycling Units . | . . . . . . . . Scanalyzers . | . . . . . . . . Garrison Access . | . . . . . . . . Terminal Hacks 14 | . 4 1 . . 4 5 . Record 2 | . . . . . . 2 . Robot Analysis 2 | . 2 . . . . . . Open Door 3 | . . . . . 3 . . Open DSF 2 | . . . . . . 2 . Locate Traps 2 | . . 1 . . . 1 . Dispatch Records 2 | . 1 . . . 1 . . Hauler Manifests 1 | . 1 . . . . . . Fabricator Hacks . | . . . . . . . . Repair Station Hacks 2 | . . . . . 2 . . Scan Component 1 | . . . . . 1 . . Repair 1 | . . . . . 1 . . Recycling Unit Hacks . | . . . . . . . . Scanalyzer . | . . . . . . . . Garrison Access Hacks . | . . . . . . . . Unauthorized Hacks 7 | . 2 4 . . 1 . . Terminals 7 | . 2 4 . . 1 . . Assimilate 2 | . . 1 . . 1 . . Skim 5 | . 2 3 . . . . . Fabricators . | . . . . . . . . Repair Stations . | . . . . . . . . Recycling Units . | . . . . . . . . Scanalyzers . | . . . . . . . . Garrison Access . | . . . . . . . . Data Cores Recovered 1 | . . 1 . . . . . Used . | . . . . . . . . Hacking Detections 12 | . 2 3 . . 4 3 . Full Trace Events 4 | . . 1 . . 3 . . Feedback Events . | . . . . . . . . Feedback Blocked . | . . . . . . . . Robot Schematics Acquired . | . . . . . . . . Robots Built . | . . . . . . . . Authchips . | . . . . . . . . Time . | . . . . . . . . Total Robot Build Rating . | . . . . . . . . Part Schematics Acquired . | . . . . . . . . Parts Built . | . . . . . . . . Authchips . | . . . . . . . . Time . | . . . . . . . . Total Part Build Rating . | . . . . . . . . Parts Repaired 1 | . . . . . 1 . . Time 32 | . . . . . 32 . . Parts Recycled . | . . . . . . . . Recycled Matter . | . . . . . . . . Retrieved Matter . | . . . . . . . . Retrieved Components . | . . . . . . . . Parts Scanalyzed . | . . . . . . . . Part Schematics Acquired . | . . . . . . . . Parts Damaged . | . . . . . . . . Bothacking | -11 -10 -9 -8 -7 -7 -6 -6 ------------ Run | Yrd Mat Mat Mat Fac Sto Fac Ext Used RIF Installer . | . . . . . . . . Robots Hacked . | . . . . . . . . Non-combat . | . . . . . . . . Combat . | . . . . . . . . Robot Hacks Applied . | . . . . . . . . Relay Couplers Released . | . . . . . . . . Fabnet Peak Effective % . | . . . . . . . . Robots Rewired . | . . . . . . . . Allies Hacked . | . . . . . . . . Hacks Repelled . | . . . . . . . . Allies | -11 -10 -9 -8 -7 -7 -6 -6 -------- Run | Yrd Mat Mat Mat Fac Sto Fac Ext Total Allies 10 | . . . . . 10 . . Largest Group 10 | . . . . . 10 . . Highest-Rated Group 173 | . . . . . 173 . . Highest-Rated Ally 29 | . . . . . 29 . . Total Orders . | . . . . . . . . Ally Attacks 34 | . . . . . 34 . . Total Damage 408 | . . . . . 408 . . Kills 3 | . . . . . 3 . . Allies Corrupted . | . . . . . . . . Allies Melted . | . . . . . . . . Intel | -11 -10 -9 -8 -7 -7 -6 -6 ------- Run | Yrd Mat Mat Mat Fac Sto Fac Ext Robot Analysis Total 2 | . 2 . . . . . . Derelict Logs Recovered . | . . . . . . . . Drone Launches . | . . . . . . . . Drone Recoveries . | . . . . . . . . Exploration | -11 -10 -9 -8 -7 -7 -6 -6 ------------- Run | Yrd Mat Mat Mat Fac Sto Fac Ext Turns Passed 6850 | 153 369 902 519 545 2235 1876 251 Spaces Moved 4579 | 90 233 570 310 279 1211 1517 369 Core 320 | 1 . 4 . . . 86 229 Treads 54 | . . 54 . . . . . Legs 2650 | . . 237 310 279 1211 613 . Wheels 630 | 89 233 275 . . . . 33 Hover 356 | . . . . . . 356 . Flight 569 | . . . . . . 462 107 Fastest Speed 40 | 50 80 80 120 123 126 40 40 Average Speed 113 | 97 80 108 122 180 135 103 52 Slowest Speed 700 | 100 95 190 123 193 196 700 100 Overloaded Moves . | . . . . . . . . Propulsion Burnouts . | . . . . . . . . Robots Hopped 6 | . . . . . . 6 . Cave-ins Triggered . | . . . . . . . . Exploration Rate (%) 31 | 4 39 41 24 7 87 21 32 Regions Visited 7 Branch Regions 2 Pre-discovered Areas 1 | . . . . . 1 . . Known Exits Taken 1 | . . . . . 1 . . Unknown Exits Taken 6 | 1 1 1 1 1 . 1 . Scrap Searched . | . . . . . . . . Spaces Dug 8 | . . 1 . . . 7 . Terrain Destroyed 263 | . 21 61 8 . 65 108 . Melee 8 | . . 1 . . . 7 . Projectile 16 | . . . 8 . 8 . . AOE 239 | . 21 60 . . 57 101 . Terrain Rammed . | . . . . . . . . Walls Destroyed . | . . . . . . . . Machines Disabled . | . . . . . . . . Actions | -11 -10 -9 -8 -7 -7 -6 -6 --------- Run | Yrd Mat Mat Mat Fac Sto Fac Ext Total 5628 | 121 358 742 397 303 1587 1694 426 Wait 371 | . 77 54 11 . 170 36 23 Move 4561 | 89 232 569 309 278 1210 1505 369 Hop 5 | . . . . . . 5 . Pick Up 39 | 3 3 5 7 3 9 8 1 Fast Attach 62 | 7 1 16 4 . 10 21 3 Attach 25 | . 3 2 3 2 5 10 . Detach 6 | 1 . . 1 . 2 2 . Swap 96 | 4 3 12 17 6 43 11 . Drop 67 | . 1 11 13 4 31 5 2 Fire 263 | 17 15 46 31 10 98 46 . Melee 64 | . 23 27 . . . 14 . Ram 5 | . . . . . . 3 2 Kick 9 | . . . 1 . 6 2 . Crush . | . . . . . . . . Escape Stasis 52 | . . . . . . 26 26 Rewire 3 | . . . . . 3 . . Trap . | . . . . . . . . Miscellaneous . | . . . . . . . . Route ------- -11/Scrapyard -10/Materials -9/Materials -8/Materials -7/Factory (discovered 2 exits: *Sto x2) -7/Storage -6/Factory -6/Extension History --------- Turn | Location | Event 16 | -11/Scrapyard | Discovered new exit (range 16) 154 | -11/Scrapyard | Entered Materials 303 | -10/Materials | Build established: Mutant 469 | -10/Materials | Core integrity fell below 50% 492 | -10/Materials | Discovered new exit (range 9) 523 | -10/Materials | Entered another Materials area 523 | -9/Materials | Evolved 2 slots: Propulsion x1, Utility x1 668 | -9/Materials | Lost 3 parts (1p1n1w) 998 | -9/Materials | Core integrity fell below 50% 1028 | -9/Materials | Lost 6 parts (4n1u1w) 1085 | -9/Materials | Lost 4 parts (1n1u2w) 1183 | -9/Materials | Core integrity fell below 20% 1245 | -9/Materials | Discovered new exit (range 14) 1357 | -9/Materials | Build established: Scavenger-Mutant 1425 | -9/Materials | Entered another Materials area 1425 | -8/Materials | Evolved 2 slots: Power x1, Utility x1 1907 | -8/Materials | Garrison activated, responded to threat 1920 | -8/Materials | Discovered new exit (range 8) 1944 | -8/Materials | Entered Factory 1944 | -7/Factory | Evolved 2 slots: Utility x1, Weapon x1 1986 | -7/Factory | Discovered new exit (range 4) 2075 | -7/Factory | Discovered new exit (range 12) 2328 | -7/Factory | Build established: Scavenger-Tank 2489 | -7/Factory | Entered Storage 2558 | -7/Storage | Repaired Cooling System 2907 | -7/Storage | Learned location of Armory (-4) 3317 | -7/Storage | Build established: Scavenger-Skirmisher 3763 | -7/Storage | Assisted by bots powering up and referring to "LRC-V3" 3860 | -7/Storage | Lost 8 allies 4705 | -7/Storage | Discovered new exit (range 16) 4723 | -7/Storage | Identified exit to Factory 4724 | -7/Storage | Entered Factory 4724 | -6/Factory | Evolved 2 slots: Propulsion x1, Utility x1 4727 | -6/Factory | Identified exit to DSF 5474 | -6/Factory | Lost 3 parts (1n1u1w) 5612 | -6/Factory | Lost 7 parts (2p3n2w) 5667 | -6/Factory | Cargo convoy interrupted 5867 | -6/Factory | Build established: Scavenger-Mutant 6133 | -6/Factory | Core integrity fell below 50% 6179 | -6/Factory | Lost 10 parts (1p2n3u4w) 6338 | -6/Factory | Spotted B-75 Beast 6342 | -6/Factory | Core integrity fell below 20% 6344 | -6/Factory | Released all parts (10) 6462 | -6/Factory | Build established: Mutant 6594 | -6/Factory | Discovered new exit (range 16) 6600 | -6/Factory | Entered Extension 6774 | -6/Extension | Spotted B-75 Beast 6851 | -6/Extension | Destroyed by Y-54 Guardian with Gatling Laser Last Messages --------------- 06694_ Stasis field depleted. 06694_ U-05 Engineer lays Concrete. 06712_ Dropped Adv. Heat Sink. 06737_ U-05 Engineer exits Transfer Station. 06739_ R-10 Processor exits Transfer Station. 06740_ K-01 Serf enters Transfer Station. 06749_ System corrupted: Heat flow error (+207). 06771_ W-25 Informer sends out distress signal. 06777_ System corrupted: Matter fused (-5). 06795_ System corrupted: Matter fused (-9). 06814_ Slammed into U-05 Engineer. 06817_ U-05 Engineer destroyed. 06817_ Broken Gravmag Array destroyed. 06817_ System corrupted by crushing effect (+3). 06818_ Acquired 25 matter. 06820_ Acquired Wheel. 06822_ Acquired Terrain Scanner. 06825_ Acquired Lgt. Ion Engine. 06849_ Y-54 Guardian springs to life. Map ----- +----------------------------------------------------+ | | | | | | | | | | | | | | | | | | | | | | | | | | | | | | | | | | | | | | | | | ???????????#????????????????????????????????? | | ????????????#???????????????????????????????? | | ???????###################################### | | ???????# ^ | | ??#????# | | ??######+##### #####@############### | | ??# [ #???# #???# #?# # ^ | | ??# = #???# #???# #?# + | | ??# = #???# #???#* *#?# = ########## | | #?#== ##??# #???# hgYY #?# = #?######## | | ??# #???# #???# hh #?# == #?# # | | ???? ????# #???# #?# #?# # | | ?????#+####### #######+#########+##### # | | ??#??# + + | | ?????# # # | | ?????# # # | | ?????# ######## | | ?#???# ###############################??????? | | #????# #??#??????????????????#??????????????? | | ?????# #??????????###????????#??????????????? | | ?????# #?????##?##???????#??????????????????? | | ?????# #???#??#????#????????????????????????? | | ???#?# ##???????#?##????????????????????????? | | ?????# #???#???##???#???????????????????????? | | ?????# #??#?#?#?????#??#????????????????????? | | ?????# #?#??????????????#???????????????????? | | ?????# #?????????????#??????????????????????? | | ?????# #???#????#???????????????????????????? | | ?????# #????#???????????????????????????????? | | ?????# #?#???????#??????????????????????????? | +----------------------------------------------------+ Best States ------------- Heat Dissipation 70 Energy Generation 38 Energy Capacity 415 Matter Stores 500 Matter Capacity 500 Sight Range 22 Robot Scan Range 15 Terrain Scan Range 14 Terrain Scan Density 85 ECM Strength 1 Jamming Range 12 Additional Mass Support 12 Armor Coverage 375 Resistance: KI 30 Resistance: EM 15 Evasion (%) 63 Recoil Reduction 1 Offensive Hacking 10 Item Schematics ----------------- None Robot Schematics ------------------ None Fabricated ------------ Nothing Alien Tech Used ----------------- None Achievements -------------- Remodeling Shopping List Challenges ------------ None Game ------ Seed StorageLayeredLattice Manual? 0 Play Time 01:29:26 Cumulative 39.4 hours Start 2024.09.11 @ 03:53:59 End 2024.09.11 @ 05:22:55 Sessions 1 Manual Loads 0 Difficulty Rogue Special Mode None Game No. 45 Rogue 45 Adventurer 0 Explorer 0 Win Type - Total 0 Types 0/0/0/0/0/0/0/0/0 Lore% 18 Gallery% 39 Achievement% 27 Wizard Run 0 Options --------- Layout 2 ASCII 0 Keyboard 1 Movement Numpad Keybinds 0 Fullscreen 2 Font 24/Smallcaps Map View 50x44 Zoom Use 0% Tactical HUD 1 Map Filters NONE Filters LOW_CONTRAST(5,20,15) Steam 1 RUN: 2eb43c77-3f75-4906-8090-8d61d579e5ca